bitfinex-derivatives/quotes_ETHF0:USTF0_20241129
["timestamp","ask_amount","ask_price","bid_price","bid_amount"]
[1732883392452,1.16938,3590.3,3590.2,0.27838]
[1732883393452,0.891,3590.3,3590.2,0.27838]
[1732883393651,0.891,3590.3,3590.0,40.8]
[1732883393652,0.50676766,3590.5,3590.4,0.27836]
[1732883393853,0.50676766,3590.5,3590.3,0.27837]
[1732883393854,0.891,3590.5,3590.3,0.27837]
[1732883394052,0.27834,3590.7,3590.4,0.8276]
[1732883394256,0.27834,3590.7,3590.6,0.27835]
[1732883394455,1.16934,3590.7,3590.6,0.27835]
[1732883394760,0.891,3590.7,3590.5,0.4484]
[1732883394962,1.16935,3590.7,3590.6,0.27834]
[1732883395652,0.27835,3590.6,3590.5,0.72675]
[1732883397155,1.16935,3590.6,3590.5,0.72675]
[1732883400763,1.16935,3590.6,3590.5,1.30675]
[1732883401360,1.16735,3590.6,3590.5,1.30675]
[1732883401870,1.16735,3590.6,3590.5,1.0284]
[1732883402163,1.16735,3590.6,3590.5,1.30675]
[1732883403459,0.889,3590.6,3590.5,1.30675]
[1732883404060,1.16735,3590.6,3590.5,1.30675]
[1732883404364,0.889,3590.6,3590.5,1.30675]
[1732883404755,0.4321,3591.0,3590.5,1.30675]
[1732883404756,0.889,3590.8,3590.5,2.95322208]
[1732883405069,0.889,3590.9,3590.8,0.27833]
[1732883405267,1.16732,3590.9,3590.8,0.27833]
[1732883405565,0.889,3590.9,3590.8,0.27833]
[1732883406162,1.16732,3590.9,3590.8,0.27833]
[1732883406466,0.27835,3590.6,3590.5,0.4484]
[1732883406663,0.27835,3590.6,3590.5,1.0484]
[1732883406869,0.27835,3590.6,3590.5,1.32675]
[1732883406870,1.50729208,3590.6,3590.5,1.32675]
[1732883407263,0.27834,3590.7,3590.6,0.27834]
[1732883407566,0.27833,3590.8,3590.7,0.27833]
[1732883408463,0.889,3591.0,3590.6,3.2078]
[1732883408660,1.16732,3591.0,3590.9,0.27832]
[1732883408867,0.889,3591.0,3590.9,0.27832]
[1732883409463,0.70759,3591.4,3591.3,0.27829]
[1732883409662,0.70759,3591.4,3591.3,0.27]
[1732883409663,1.16728,3591.4,3591.3,0.27]
[1732883409862,1.16728,3591.4,3591.3,0.54829]
[1732883410268,3.2078,3591.9,3591.3,0.27]
[1732883410463,0.889,3591.5,3591.4,0.27828]
[1732883410667,0.889,3591.5,3591.4,1.15828]
[1732883410862,0.889,3591.5,3591.4,41.95828]
[1732883411067,0.889,3591.8,3591.4,41.68]
[1732883411267,0.889,3591.8,3591.7,0.27826]
[1732883411863,0.23040552,3592.0,3591.4,40.8]
[1732883412068,0.23040552,3592.0,3591.9,0.27825]
[1732883412069,0.889,3592.0,3591.9,0.27825]
[1732883412264,1.16724,3592.0,3591.9,0.27825]
[1732883412463,0.27826,3591.8,3591.7,0.27825]
[1732883412664,0.27825,3591.9,3591.8,0.27825]
[1732883413266,0.889,3592.0,3591.9,0.27825]
[1732883413472,1.96779063,3592.1,3592.0,0.27824]
[1732883413473,2.24602063,3592.1,3592.0,0.27824]
[1732883413770,0.27824,3592.0,3591.9,0.27824]
[1732883414072,0.27826,3591.7,3591.6,1.2974]
[1732883414370,1.96779063,3592.1,3591.6,1.2974]
[1732883414567,0.27825,3591.9,3591.8,0.27825]
[1732883414763,0.27826,3591.8,3591.7,0.27826]
[1732883415361,0.27825,3591.9,3591.8,0.27825]
[1732883415567,0.889,3592.0,3591.7,3.2078]
[1732883415869,0.27825,3591.9,3591.8,0.27825]
[1732883416062,0.27825,3591.8,3591.7,3.48606]
[1732883416266,0.27825,3591.9,3591.8,0.27825]
[1732883416472,0.889,3592.0,3591.9,0.27825]
[1732883416769,0.27825,3591.8,3591.7,3.2078]
[1732883417074,3.23683887,3592.2,3591.9,0.27825]
[1732883417075,1.58924,3592.0,3591.9,0.27825]
[1732883419471,1.16724,3592.0,3591.9,0.72035]
[1732883419875,0.889,3592.0,3591.9,0.72035]
[1732883420064,0.889,3592.0,3591.9,1.14775]
[1732883420264,0.65509286,3592.3,3591.9,0.8695]
[1732883420474,1.16723,3592.2,3592.1,0.27823]
[1732883421075,0.27824,3592.1,3592.0,0.27824]
[1732883421271,0.27824,3592.0,3591.9,1.14774]
[1732883421466,0.889,3592.2,3591.9,0.8695]
[1732883421667,0.27823,3592.1,3592.0,0.27823]
[1732883421871,0.27823,3592.2,3592.1,0.27822]
[1732883422078,1.16723,3592.2,3592.1,0.27822]
[1732883422271,0.889,3592.2,3592.1,0.27822]
[1732883422475,0.889,3592.2,3592.1,3.67602]
[1732883425177,0.27822,3592.3,3592.1,3.3978]
[1732883425380,1.16621,3592.4,3592.3,0.27821]
[1732883425681,1.16621,3592.4,3592.3,2.22821]
[1732883425880,0.888,3592.4,3592.3,2.22821]
[1732883426778,0.888,3592.4,3592.3,1.95]
[1732883427082,1.16621,3592.4,3592.3,1.95]
[1732883427883,1.16621,3592.4,3592.3,2.22822]
[1732883428080,1.16621,3592.4,3592.3,1.95]
[1732883429689,1.16621,3592.4,3592.3,2.22822]
[1732883431285,1.16621,3592.4,3592.3,1.95]
[1732883431982,1.16621,3592.4,3592.3,2.22822]
[1732883433380,0.888,3592.4,3592.3,2.22822]
[1732883433579,1.16621,3592.4,3592.3,2.22822]
[1732883434884,0.27821,3592.4,3592.3,2.22822]
[1732883435085,1.16621,3592.4,3592.3,2.22822]
[1732883435285,0.888,3592.4,3592.3,2.22822]
[1732883435683,1.16621,3592.4,3592.3,2.22822]
[1732883437483,0.888,3592.4,3592.3,2.22822]
[1732883437876,1.16621,3592.4,3592.3,2.22822]
[1732883440189,1.76374054,3592.4,3592.3,2.22822]
[1732883440786,1.48553054,3592.4,3592.3,2.22822]
[1732883441988,0.888,3592.4,3592.3,2.22822]
[1732883442389,0.2782,3592.6,3592.3,3.17763723]
[1732883442686,1.16619,3592.7,3592.3,6.38543723]
[1732883442891,1.16619,3592.7,3592.6,0.27819]
[1732883443091,1.76414473,3592.7,3592.6,0.27819]
[1732883445289,0.27819,3592.6,3592.5,1.09599]
[1732883445487,0.87614473,3592.6,3592.5,1.09599]
[1732883447191,0.27819,3592.6,3592.5,1.09599]
[1732883447796,0.888,3592.7,3592.5,0.8178]
[1732883448089,1.16619,3592.7,3592.6,0.27819]
[1732883452696,1.16619,3592.7,3592.6,2.76819]
[1732883453292,0.888,3592.7,3592.6,2.76819]
[1732883453693,0.27818,3592.7,3592.6,2.76819]
[1732883454399,0.87577286,3592.7,3592.6,2.76819]
[1732883457294,0.59759286,3592.7,3592.6,2.76819]
[1732883457797,0.59761441,3592.7,3592.6,2.49]
[1732883457995,0.888,3592.8,3592.7,0.27818]
[1732883458197,1.76376296,3592.8,3592.7,3.57818]
[1732883458399,1.48558296,3592.8,3592.7,3.57818]
[1732883458601,1.76376296,3592.8,3592.7,3.57818]
[1732883459102,1.48558296,3592.8,3592.7,3.57818]
[1732883459295,0.888,3592.8,3592.7,3.57818]
[1732883459498,0.27815,3593.2,3593.1,0.27815]
[1732883459798,1.16615,3593.2,3593.1,0.58815]
[1732883459998,1.76368021,3593.2,3593.1,0.58815]
[1732883460295,1.76368021,3593.2,3593.1,1.86945]
[1732883460705,1.48553021,3593.2,3593.1,1.86945]
[1732883461005,0.27814,3593.3,3593.2,0.27815]
[1732883461295,1.762685,3593.3,3593.2,0.58815]
[1732883461802,0.72522,3593.6,3593.2,1.81578723]
[1732883462001,9.21012911,3593.7,3593.6,0.27811]
[1732883462204,2.8424998,3593.7,3593.6,2.54]
[1732883462502,2.85401911,3593.7,3593.6,4.48724723]
[1732883463198,0.887,3593.8,3593.7,0.27811]
[1732883463496,0.887,3593.8,3593.7,4.57141]
[1732883463702,0.27809,3594.0,3593.7,45.0933]
[1732883463903,1.1651,3593.9,3593.8,0.27809]
[1732883464096,1.1651,3593.9,3593.7,46.32093723]
[1732883464097,0.2781,3593.8,3593.7,43.16903723]
[1732883464298,1.16509,3593.9,3593.8,0.2781]
[1732883465098,0.27809,3593.9,3593.8,0.2781]
[1732883465399,1.16509,3594.0,3593.9,0.27809]
[1732883465997,0.2781,3593.8,3593.6,0.4415]
[1732883466203,1.22763723,3593.7,3593.6,0.02]
[1732883466507,1.48715163,3593.7,3592.5,1.22763723]
[1732883466706,0.27818,3592.9,3592.8,0.27817]
[1732883466897,1.16518,3592.9,3592.8,1.06497]
[1732883467208,0.887,3592.9,3592.8,1.06497]
[1732883467592,0.887,3593.4,3593.3,0.27814]
[1732883467799,0.887,3593.4,3593.3,40.8]
[1732883468101,1.16513,3593.4,3593.3,41.07814]
[1732883468295,1.16513,3593.4,3593.3,40.8]
[1732883468499,0.27815,3593.2,3593.1,2.35738723]
[1732883469199,0.27815,3593.2,3593.1,0.4246]
[1732883469402,0.27817,3593.0,3592.9,0.27816]
[1732883469599,0.27817,3593.0,3592.9,1.20816]
[1732883472407,0.4069,3593.1,3592.9,0.93]
[1732883472603,0.68506,3593.1,3593.0,0.27816]
[1732883472902,0.68505,3593.1,3593.0,1.47816]
[1732883473502,0.68505,3593.1,3593.0,1.47168838]
[1732883475111,0.68505,3593.1,3593.0,1.2]
[1732883475306,0.68505,3593.1,3592.3,3.2078]
[1732883475307,0.4069,3593.1,3592.3,5.32003723]
[1732883475511,0.27821,3592.5,3592.4,0.2782]
[1732883475810,0.27821,3592.5,3592.4,0.7182]
[1732883476107,0.2782,3592.6,3592.5,0.27819]
[1732883476305,0.2782,3592.6,3592.5,1.18819]
[1732883476501,0.2782,3592.6,3592.5,0.91]
[1732883476704,0.887,3592.7,3592.4,0.27821]
[1732883477010,0.2782,3592.5,3592.4,0.57821]
[1732883477213,1.16519,3592.7,3592.6,0.27819]
[1732883477404,1.16519,3592.7,3592.6,4.53819]
[1732883477807,1.16519,3592.7,3592.6,4.97989]
[1732883478403,1.16519,3592.7,3592.6,4.53819]
[1732883478907,0.887,3592.7,3592.6,4.53819]
[1732883479708,1.16518,3592.7,3592.6,4.53819]
[1732883480704,0.887,3592.7,3592.6,4.53819]
[1732883482007,1.16518,3592.7,3592.6,4.53819]
[1732883482414,0.887,3592.7,3592.6,4.53819]
[1732883482806,1.16518,3592.7,3592.6,4.53819]
[1732883484813,1.16518,3592.7,3592.6,4.26]
[1732883485214,1.58658,3592.7,3592.6,4.26]
[1732883486224,1.58658,3592.7,3592.6,4.53819]
[1732883486427,1.58658,3592.7,3592.6,4.26]
[1732883486827,2.01958,3592.7,3592.6,4.26]
[1732883487023,2.01958,3592.7,3592.6,2.22303332]
[1732883487227,0.27825,3591.8,3591.7,1.55186]
[1732883487433,0.27825,3591.8,3591.7,3.33186]
[1732883488331,0.27825,3591.9,3591.8,0.27825]
[1732883488530,0.27825,3591.9,3591.8,1.34]
[1732883489028,8.99294177,3591.9,3591.8,1.34]
[1732883489524,0.27825,3591.9,3591.8,1.34]
[1732883489725,8.98273715,3591.9,3591.8,1.34]
[1732883490424,0.887,3592.0,3591.1,1.54951]
[1732883490425,0.2783,3591.2,3591.1,1.54951]
[1732883490623,0.2783,3591.2,3591.1,1.5312]
[1732883490826,0.2783,3591.2,3591.1,1.80951]
[1732883491227,0.2783,3591.2,3591.1,1.5312]
[1732883491518,0.2783,3591.2,3591.1,1.0831]
[1732883492725,0.2783,3591.2,3591.1,1.36141]
[1732883493434,4.3721,3591.3,3591.2,0.2783]
[1732883493729,4.3721,3591.3,3591.2,0.5783]
[1732883494335,4.3721,3591.3,3591.2,41.3783]
[1732883494828,3.48605,3591.8,3591.7,0.27826]
[1732883495021,3.2078,3591.8,3591.3,0.4438]
[1732883495333,0.27827,3591.7,3591.6,0.27826]
[1732883495627,0.27828,3591.6,3591.5,0.27827]
[1732883496323,4.0938,3591.8,3591.3,0.4438]
[1732883496523,4.0938,3591.8,3591.7,0.27826]
[1732883496524,4.37206,3591.8,3591.7,0.27826]
[1732883496734,1.16426,3591.8,3591.7,0.27826]
[1732883497031,1.16426,3591.8,3591.7,40.8]
[1732883497227,0.2783,3591.2,3591.1,0.8231]
[1732883497526,0.2783,3591.3,3591.1,1.0031]
[1732883497834,0.886,3591.4,3591.3,0.27829]
[1732883498230,1.16428,3591.4,3591.3,0.27829]
[1732883498529,0.886,3591.6,3591.5,0.27828]
[1732883499328,1.16427,3591.6,3591.5,0.27828]
[1732883499536,0.27828,3591.4,3591.3,40.8]
[1732883499830,0.27828,3591.4,3591.3,41.68]
[1732883500628,0.27828,3591.4,3591.3,41.95829]
[1732883502131,0.27828,3591.5,3591.4,0.27828]
[1732883502336,4.37207,3591.6,3591.5,0.27828]
[1732883503234,4.37231972,3592.0,3591.3,43.33855835]
[1732883503427,4.65056972,3592.0,3591.9,0.27825]
[1732883504735,3.2078,3592.0,3591.9,0.89825]
[1732883505528,3.2078,3593.4,3591.9,8.8278]
[1732883505726,0.27816,3593.1,3593.0,0.27816]
[1732883505926,0.27817,3592.9,3592.8,0.4251]
[1732883506131,0.886,3593.3,3592.7,44.0078]
[1732883506336,0.27818,3592.8,3592.7,40.8]
[1732883506525,0.69537,3593.2,3592.6,0.27819]
[1732883506726,0.27818,3592.7,3592.6,0.29819]
[1732883506931,0.27818,3592.7,3592.6,0.02]
[1732883507138,0.886,3593.1,3592.4,40.8]
[1732883507341,0.2782,3592.5,3592.4,41.44]
[1732883507635,0.2782,3592.5,3592.4,41.07821]
[1732883508038,0.886,3592.8,3592.4,40.8]
[1732883508235,0.27819,3592.7,3592.6,0.27819]
[1732883511434,0.886,3592.8,3592.3,3.6333]
[1732883511631,0.2782,3592.5,3592.4,0.2782]
[1732883511835,0.886,3592.8,3592.3,3.6333]
[1732883512039,0.27821,3592.4,3592.3,3.6333]
[1732883512542,0.27824,3592.0,3591.9,3.48604]
[1732883512840,0.27825,3591.9,3591.8,0.27825]
[1732883513037,0.27827,3591.7,3591.6,0.27827]
[1732883513238,0.27826,3591.9,3591.8,0.27825]
[1732883513431,0.27826,3591.9,3591.8,1.73825]
[1732883514240,1.3342,3592.1,3591.6,0.27826]
[1732883514241,0.27827,3591.7,3591.6,0.27826]
[1732883514545,0.27827,3591.7,3591.6,1.37826]
[1732883515451,0.27826,3591.8,3591.7,0.27825]
[1732883516247,0.27827,3591.6,3591.5,3.48607]
[1732883516541,0.27827,3591.6,3591.5,3.2078]
[1732883516747,0.27827,3591.6,3591.5,44.0078]
[1732883517044,0.27827,3591.6,3591.5,3.2078]
[1732883517635,0.27827,3591.6,3591.5,3.48608]
[1732883518143,0.27827,3591.6,3591.5,3.2078]
[1732883518545,0.27827,3591.6,3591.5,3.48608]
[1732883519843,0.27826,3591.8,3591.7,0.27825]
[1732883520240,0.27827,3591.7,3591.6,0.27827]
[1732883520748,0.27827,3591.7,3591.6,0.27826]
[1732883521544,0.27826,3591.8,3591.7,0.27825]
[1732883521944,0.886,3592.1,3591.5,3.2078]
[1732883522143,0.27825,3591.9,3591.8,0.27824]
[1732883522539,0.27824,3592.0,3591.9,0.27824]
[1732883522740,0.891,3592.1,3591.9,3.6278]
[1732883523039,0.891,3592.1,3592.0,0.71474]
[1732883523245,0.891,3592.1,3592.0,2.67594]
[1732883524639,0.27818,3592.9,3592.8,0.27817]
[1732883524844,1.16918,3592.9,3592.8,0.27817]
[1732883525042,1.16918,3592.9,3592.8,0.51817]
[1732883525043,0.27818,3592.9,3592.8,0.51817]
[1732883525346,3.48596,3593.0,3592.9,0.27817]
[1732883525645,3.48596,3593.0,3592.9,1.12817]
[1732883526045,0.27816,3593.0,3592.9,1.12817]
[1732883526743,0.891,3593.1,3592.9,0.85]
[1732883526945,0.27816,3593.0,3592.9,1.12816]
[1732883527139,0.27816,3593.0,3592.9,0.85]
[1732883527335,0.27816,3593.0,3592.9,1.12817]
[1732883528442,0.27816,3593.0,3592.9,0.85]
[1732883528648,0.27816,3593.0,3592.9,1.12817]
[1732883528838,0.891,3593.1,3592.9,0.85]
[1732883529040,1.16916,3593.1,3593.0,0.27816]
[1732883529240,1.16916,3593.1,3593.0,0.59816]
[1732883529841,1.16916,3593.1,3593.0,0.32]
[1732883530251,0.27817,3593.0,3592.9,0.27816]
[1732883530753,0.27817,3593.0,3592.9,1.84817]
[1732883533052,0.27817,3593.0,3592.9,1.57]
[1732883534553,0.27817,3593.0,3592.9,1.84817]
[1732883535251,0.891,3593.1,3593.0,0.27816]
[1732883535449,1.16915,3593.2,3593.1,0.27814]
[1732883536146,0.27816,3593.1,3593.0,0.27816]
[1732883536347,0.891,3593.2,3592.9,3.2078]
[1732883536549,0.27816,3593.0,3592.9,5.27596]
[1732883537154,0.27816,3593.0,3592.9,1.79]
[1732883537650,0.27816,3593.0,3592.5,4.0478]
[1732883537651,2.53855835,3593.0,3592.5,0.4207]
[1732883537847,0.27819,3592.6,3592.5,0.6989]
[1732883538243,2.53855835,3593.0,3592.5,0.4207]
[1732883538443,0.27819,3592.8,3592.7,0.27817]
[1732883538849,0.27817,3593.1,3593.0,0.27815]
[1732883539151,0.27817,3593.1,3593.0,0.83815]
[1732883539342,1.16917,3593.1,3593.0,0.83815]
[1732883539549,1.16917,3593.1,3593.0,0.56]
[1732883540243,0.27817,3592.9,3592.8,3.2078]
[1732883540544,0.27819,3592.6,3592.5,0.69889]
[1732883540749,0.27819,3592.6,3592.5,0.6989]
[1732883541652,0.27819,3592.7,3592.6,0.27818]
[1732883541958,0.27819,3592.6,3592.5,0.4207]
[1732883542249,0.27819,3592.6,3592.5,2.3489]
[1732883542551,0.27819,3592.6,3592.5,1.65]
[1732883542748,0.27819,3592.6,3592.5,1.9282]
[1732883544153,0.2782,3592.5,3592.4,3.48601]
[1732883544357,0.2782,3592.5,3592.4,4.59601]
[1732883547554,0.2782,3592.7,3592.6,0.27818]
[1732883548553,0.69538,3593.2,3592.4,3.2078]
[1732883548852,0.27817,3593.0,3592.9,0.27816]
[1732883549157,0.27817,3593.0,3592.9,0.72896]
[1732883549347,0.87363349,3593.0,3592.9,0.72896]
[1732883549857,0.87363349,3593.0,3592.9,0.72897]
[1732883550253,0.87363349,3593.0,3592.9,0.4508]
[1732883550752,0.87363349,3593.0,3592.9,0.72897]
[1732883550957,0.87363349,3593.0,3592.9,0.4508]
[1732883551253,0.87363349,3593.0,3592.9,0.72897]
[1732883551459,0.87363349,3593.0,3592.9,0.27817]
[1732883551756,0.59546349,3593.0,3592.9,0.27817]
[1732883551953,0.886,3593.3,3592.9,4.0321]
[1732883552158,0.886,3593.5,3593.2,3.2078]
[1732883552350,0.886,3593.5,3593.4,0.27813]
[1732883552555,1.1641,3593.8,3593.7,0.27809]
[1732883552754,1.16409,3594.1,3594.0,0.27808]
[1732883552956,0.27809,3594.0,3593.9,0.27808]
[1732883554361,0.886,3594.1,3594.0,0.27808]
[1732883554558,1.16408,3594.1,3594.0,0.27808]
[1732883554759,0.2781,3593.9,3593.8,0.27809]
[1732883555161,0.27809,3594.0,3593.9,0.27808]
[1732883555963,0.886,3594.1,3594.0,0.27808]
[1732883555964,1.16408,3594.1,3594.0,0.27808]
[1732883557862,0.23176324,3594.4,3593.7,3.2078]
[1732883558160,0.886,3594.7,3594.2,3.2078]
[1732883558358,1.16404,3594.7,3594.6,3.48583]
[1732883558658,0.27803,3594.7,3594.6,3.7378]
[1732883558864,0.27803,3594.7,3594.6,4.01583]
[1732883559257,0.27803,3594.7,3594.6,3.7378]
[1732883559467,0.27803,3594.7,3594.6,4.01584]
[1732883559761,2.81658835,3594.7,3594.6,0.53]
[1732883559967,2.81658835,3594.7,3594.3,0.4147]
[1732883559968,2.53855835,3594.7,3594.3,0.4147]
[1732883560259,0.27805,3594.4,3594.3,0.6747]
[1732883561961,0.27805,3594.4,3594.3,0.95276]
[1732883562960,0.886,3594.6,3594.3,0.6747]
[1732883563269,0.27805,3594.4,3594.3,0.95275]
[1732883564164,0.27805,3594.4,3594.3,0.95276]
[1732883564460,0.27805,3594.4,3594.3,0.6747]
[1732883564859,0.27805,3594.4,3594.3,0.95276]
[1732883565664,11.2430455,3595.4,3594.3,1.36985]
[1732883565874,0.27802,3594.9,3594.8,0.27801]
[1732883566165,1.16401,3595.0,3594.9,0.27801]
[1732883566370,0.27801,3595.0,3594.9,0.27801]
[1732883566570,1.16401,3595.0,3594.9,0.27801]
[1732883567866,1.16401,3595.0,3594.7,41.2098]
[1732883567867,0.27802,3594.8,3594.7,41.48783]
[1732883568067,0.27802,3594.8,3594.7,41.69783]
[1732883568966,0.27802,3594.8,3594.7,0.89783]
[1732883570965,0.27802,3594.8,3594.7,0.6198]
[1732883571574,0.27802,3594.8,3594.7,0.89783]
[1732883572865,0.27802,3594.8,3594.7,0.48803]
[1732883573171,0.27802,3594.8,3594.7,0.21]
[1732883573972,0.27802,3594.8,3594.7,0.48803]
[1732883574870,0.27802,3594.8,3594.7,0.21]
[1732883575068,0.27802,3594.8,3594.7,0.48803]
[1732883575374,0.27802,3594.8,3594.7,0.21]
[1732883575973,0.27804,3594.5,3594.4,0.4199]
[1732883576168,0.27804,3594.5,3594.4,1.2699]
[1732883577877,0.27804,3594.5,3594.4,1.54795]
[1732883578078,0.27804,3594.5,3594.4,1.2699]
[1732883578469,0.27804,3594.5,3594.4,1.54795]
[1732883580479,0.27804,3594.5,3594.4,1.2699]
[1732883580976,0.27804,3594.5,3594.4,0.85]
[1732883581684,0.27809,3593.9,3593.8,0.8436]
[1732883581881,0.27813,3593.4,3593.3,40.8]
[1732883582087,0.27813,3593.4,3593.3,0.48]
[1732883583079,0.27813,3593.4,3593.3,0.75814]
[1732883583380,1.98257,3593.8,3593.4,0.27812]
[1732883583381,0.27813,3593.5,3593.4,0.27812]
[1732883583587,0.27813,3593.5,3593.4,2.65812]
[1732883584280,0.27813,3593.5,3593.4,2.38]
[1732883585382,0.27817,3592.9,3592.8,3.48597]
[1732883585579,0.885,3593.2,3593.0,0.27815]
[1732883585882,1.2873,3593.8,3592.8,3.2078]
[1732883585883,0.27814,3593.3,3592.8,3.2078]
[1732883586082,0.27811,3593.8,3593.7,0.2781]
[1732883586289,0.885,3594.1,3593.7,1.24]
[1732883586591,0.885,3594.1,3594.0,3.48588]
[1732883586777,0.885,3594.1,3594.0,4.96588]
[1732883587383,0.27807,3594.2,3594.1,0.27808]
[1732883587582,0.27807,3594.2,3594.1,0.90808]
[1732883587778,0.27805,3594.4,3594.3,0.27805]
[1732883588388,0.27807,3594.3,3594.2,0.27806]
[1732883588586,0.885,3594.5,3594.2,1.56]
[1732883588887,2.81661835,3594.3,3594.2,1.56]
[1732883590292,0.27808,3594.1,3594.0,3.48588]
[1732883590489,0.27808,3594.2,3594.1,0.27807]
[1732883590687,0.27808,3594.2,3594.1,1.18807]
[1732883590882,2.53855835,3594.3,3594.2,0.27807]
[1732883590883,2.81662835,3594.3,3594.2,0.27807]
[1732883591084,0.27806,3594.4,3594.3,0.27805]
[1732883591284,0.27806,3594.4,3594.3,1.13955]
[1732883591884,0.27806,3594.4,3594.3,1.13956]
[1732883592088,0.27806,3594.4,3594.3,0.8615]
[1732883592287,0.27806,3594.4,3594.0,3.2078]
[1732883592288,0.27808,3594.1,3594.0,3.2078]
[1732883592509,2.81663835,3594.1,3594.0,0.28807]
[1732883593021,2.53855835,3594.4,3594.0,0.01]
[1732883593226,0.27808,3594.2,3594.1,0.27807]
[1732883593417,0.27808,3594.2,3594.1,0.58807]
[1732883594310,0.27808,3594.2,3593.8,0.4201]
[1732883594494,0.27809,3593.9,3593.8,0.7101]
[1732883595391,2.53855835,3594.0,3593.2,3.2078]
[1732883595593,0.27814,3593.3,3593.2,1.53814]
[1732883595985,0.27814,3593.3,3593.2,1.26]
[1732883596190,1.12724,3593.3,3593.2,1.26]
[1732883596793,0.27814,3593.3,3593.2,1.53815]
[1732883597294,0.27814,3593.3,3593.2,1.26]
[1732883598887,0.69538,3593.2,3592.3,3.2078]
[1732883599090,0.27821,3592.4,3592.3,5.1878]
[1732883599289,0.27822,3592.3,3592.2,0.4106]
[1732883599491,0.27825,3591.8,3591.7,3.6551]
[1732883599699,2.53855835,3591.8,3591.2,0.8273]
[1732883599990,2.81683835,3591.4,3591.3,40.8]
[1732883600698,0.2783,3591.2,3591.1,3.4861]
[1732883600894,0.2783,3591.2,3591.1,3.2078]
[1732883601196,0.2783,3591.2,3591.1,44.0078]
[1732883601391,0.2783,3591.2,3591.1,40.8]
[1732883601596,0.2783,3591.2,3590.6,3.48615]
[1732883601597,2.53855835,3591.4,3590.6,3.2078]
[1732883601798,0.27833,3590.9,3590.8,0.27833]
[1732883602193,0.27832,3591.0,3590.9,0.27832]
[1732883602587,0.27832,3590.9,3590.8,40.8]
[1732883602895,2.53855835,3591.1,3590.8,40.8]
[1732883603296,0.27832,3591.0,3590.9,0.71512]
[1732883603691,2.53855835,3591.1,3590.9,0.4368]
[1732883603893,0.27832,3591.0,3590.9,0.71512]
[1732883604296,0.27832,3591.0,3590.9,0.4368]
[1732883605294,2.53855835,3591.1,3590.8,40.8]
[1732883605496,0.27832,3590.9,3590.8,40.8]
[1732883606801,2.53855835,3591.1,3590.8,41.07833]
[1732883606802,0.27832,3591.0,3590.8,41.07833]
[1732883606996,2.53855835,3591.1,3590.8,40.8]
[1732883607897,0.27832,3590.9,3590.8,40.8]
[1732883608404,0.27834,3590.7,3590.6,3.2078]
[1732883608700,2.81689835,3590.7,3590.6,3.2178]
[1732883608904,2.53855835,3590.7,3590.6,3.48615]
[1732883609405,0.27836,3590.5,3590.3,0.27837]
[1732883609598,0.27837,3590.3,3590.2,0.427]
[1732883609803,2.81692835,3590.4,3590.2,1.04538]
[1732883610199,2.81692835,3590.4,3590.2,0.767]
[1732883610505,2.81692835,3590.4,3590.3,0.27837]
[1732883610799,2.81692835,3590.4,3590.3,1.96837]
[1732883611101,2.81692835,3590.4,3590.3,1.69]
[1732883612104,2.53855835,3590.4,3590.2,0.427]
[1732883612303,0.27837,3590.3,3590.2,0.427]
[1732883612701,5.74635835,3590.7,3590.2,0.427]
[1732883612910,0.27836,3590.5,3590.4,0.27836]
[1732883613110,5.74635835,3590.7,3590.2,0.427]
[1732883613315,0.27837,3590.4,3590.3,0.27837]
[1732883613516,0.27837,3590.3,3590.2,0.427]
[1732883613813,0.27838,3590.2,3590.1,3.2078]
[1732883614203,2.53855835,3590.4,3589.7,0.8249]
[1732883614408,0.27841,3589.8,3589.7,1.44331]
[1732883614608,0.27841,3589.8,3589.7,1.1649]
[1732883614914,0.901,3590.0,3589.9,0.2784]
[1732883615110,3.2078,3590.7,3589.7,0.8249]
[1732883615413,0.901,3590.9,3590.5,3.2078]
[1732883615610,0.27831,3591.1,3591.0,0.27831]
[1732883615802,0.2783,3591.3,3591.2,0.2783]
[1732883616103,2.53855835,3591.4,3590.9,3.2078]
[1732883616104,3.43955835,3591.4,3590.9,3.2078]
[1732883616416,2.81686835,3591.1,3591.0,40.8]
[1732883616611,2.53855835,3591.1,3590.9,0.27832]
[1732883616807,2.53855835,3591.1,3590.6,1.2646]
[1732883617015,0.27834,3590.8,3590.7,0.27833]
[1732883617213,0.27832,3591.0,3590.9,0.27832]
[1732883617416,2.53855835,3591.1,3590.7,40.8]
[1732883617615,0.27833,3590.9,3590.8,0.27832]
[1732883617813,0.27832,3591.0,3590.9,0.27832]
[1732883618014,2.81686835,3591.1,3591.0,0.27832]
[1732883618311,2.81686835,3591.1,3590.9,0.27832]
[1732883618312,0.27832,3591.0,3590.9,0.27832]
[1732883618715,0.27833,3590.9,3590.8,0.27833]
[1732883618916,2.53855835,3591.1,3590.7,40.8]
[1732883619118,0.27832,3591.0,3590.9,0.27832]
[1732883620418,0.27833,3590.9,3590.8,0.27833]
[1732883622419,2.53855835,3591.5,3590.6,42.0646]
[1732883622717,0.901,3591.9,3591.2,0.69576]
[1732883622915,0.27825,3591.8,3591.7,3.2078]
[1732883623119,3.43955835,3591.9,3591.4,0.27828]